[Event "Titled Tuesday Blitz August 1 Early 2023"]
[White "NicolaiMaxime"]
[Black "Miguelitro69"]
[WhiteElo "2484"]
[BlackElo "2297"]
[Result "0-1"]
[Round "6"]
[TimeControl "180+1"]
[Date "2023.08.01"]
[WhiteClock "0:00:00"]
[BlackClock "0:00:12"]
[Board "183"]

1. e4 {[%clk 0:03:00]}  c5 {[%clk 0:03:00]} 2. b3 {[%clk 0:02:58]}  e5 {[%clk 0:02:59]} 3. Bb2 {[%clk 0:02:58]}  Nc6 {[%clk 0:02:59]} 4. Bb5 {[%clk 0:02:58]}  d6 {[%clk 0:02:59]} 5. f4 {[%clk 0:02:58]}  exf4 {[%clk 0:02:54]} 6. Nf3 {[%clk 0:02:58]}  Bd7 {[%clk 0:02:53]} 7. O-O {[%clk 0:02:55]}  Nge7 {[%clk 0:02:50]} 8. d4 {[%clk 0:02:48]}  Ng6 {[%clk 0:02:49]} 9. Bxc6 {[%clk 0:02:41]}  Bxc6 {[%clk 0:02:46]} 10. d5 {[%clk 0:02:42]}  Bd7 {[%clk 0:02:45]} 11. Nbd2 {[%clk 0:02:37]}  Be7 {[%clk 0:02:35]} 12. Bxg7 {[%clk 0:02:35]}  Rg8 {[%clk 0:02:35]} 13. Bb2 {[%clk 0:02:33]}  Qc7 {[%clk 0:02:35]} 14. e5 {[%clk 0:02:28]}  Nxe5 {[%clk 0:02:28]} 15. Nxe5 {[%clk 0:02:26]}  dxe5 {[%clk 0:02:28]} 16. Nc4 {[%clk 0:02:27]}  f6 {[%clk 0:02:14]} 17. Qh5+ {[%clk 0:02:14]}  Kf8 {[%clk 0:01:59]} 18. Rad1 {[%clk 0:02:07]}  Bd6 {[%clk 0:01:48]} 19. Qxh7 {[%clk 0:01:59]}  b5 {[%clk 0:01:39]} 20. Nd2 {[%clk 0:01:42]}  Bg4 {[%clk 0:01:39]} 21. Qxc7 {[%clk 0:01:33]}  Bxc7 {[%clk 0:01:38]} 22. Rde1 {[%clk 0:01:34]}  Bf5 {[%clk 0:01:23]} 23. Ne4 {[%clk 0:01:13]}  Bxe4 {[%clk 0:01:20]} 24. Rxe4 {[%clk 0:01:14]}  Rd8 {[%clk 0:01:11]} 25. c4 {[%clk 0:01:11]}  b4 {[%clk 0:01:04]} 26. Kh1 {[%clk 0:01:09]}  Rg6 {[%clk 0:00:50]} 27. a3 {[%clk 0:00:45]}  bxa3 {[%clk 0:00:40]} 28. Bxa3 {[%clk 0:00:46]}  Bd6 {[%clk 0:00:40]} 29. Ra1 {[%clk 0:00:44]}  Rb8 {[%clk 0:00:38]} 30. Rb1 {[%clk 0:00:31]}  f5 {[%clk 0:00:37]} 31. Re2 {[%clk 0:00:31]}  e4 {[%clk 0:00:37]} 32. Bc1 {[%clk 0:00:31]}  Ke7 {[%clk 0:00:35]} 33. Bd2 {[%clk 0:00:29]}  Kf6 {[%clk 0:00:23]} 34. Bc3+ {[%clk 0:00:29]}  Be5 {[%clk 0:00:23]} 35. Bxe5+ {[%clk 0:00:24]}  Kxe5 {[%clk 0:00:23]} 36. Ra2 {[%clk 0:00:25]}  Rb7 {[%clk 0:00:21]} 37. Ra5 {[%clk 0:00:23]}  Rc7 {[%clk 0:00:18]} 38. Rd1 {[%clk 0:00:22]}  e3 {[%clk 0:00:17]} 39. Kg1 {[%clk 0:00:16]}  Ke4 {[%clk 0:00:17]} 40. Kf1 {[%clk 0:00:15]}  f3 {[%clk 0:00:16]} 41. gxf3+ {[%clk 0:00:14]}  Kxf3 {[%clk 0:00:17]} 42. Ra2 {[%clk 0:00:07]}  Rcg7 {[%clk 0:00:16]} 43. Rf2+ {[%clk 0:00:05]}  exf2 {[%clk 0:00:16]} 44. Rd3+ {[%clk 0:00:05]}  Ke4 {[%clk 0:00:16]} 45. Rh3 {[%clk 0:00:04]}  Rb6 {[%clk 0:00:12]} 46. Kxf2 {[%clk 0:00:02]}  f4 {[%clk 0:00:11]} 47. Ke2 {[%clk 0:00:01]}  Kd4 {[%clk 0:00:10]} 48. Kf1 {[%clk 0:00:02]}  Re7 {[%clk 0:00:09]} 49. Rf3 {[%clk 0:00:02]}  Re4 {[%clk 0:00:10]} 50. Kf2 {[%clk 0:00:02]}  Ke5 {[%clk 0:00:10]} 51. h4 {[%clk 0:00:02]}  Re3 {[%clk 0:00:10]} 52. Rxe3+ {[%clk 0:00:03]}  fxe3+ {[%clk 0:00:11]} 53. Kxe3 {[%clk 0:00:04]}  Rxb3+ {[%clk 0:00:11]} 54. Kd2 {[%clk 0:00:04]}  Rh3 {[%clk 0:00:11]} 55. d6 {[%clk 0:00:05]}  Kxd6 {[%clk 0:00:11]} 56. Kc2 {[%clk 0:00:06]}  Rxh4 {[%clk 0:00:11]} 57. Kb2 {[%clk 0:00:07]}  Rh3 {[%clk 0:00:11]} 58. Kc2 {[%clk 0:00:07]}  Ke5 {[%clk 0:00:12]} 59. Kd2 {[%clk 0:00:07]}  Kd4 {[%clk 0:00:13]} 60. Kc2 {[%clk 0:00:08]}  Kxc4 {[%clk 0:00:14]} 61. Kb2 {[%clk 0:00:00]}  a5 {[%clk 0:00:12]} 0-1


[Site "https://www.chess.com"]

[Event "Titled Tuesday Blitz August 1 Early 2023"]
[White "Swicarz, Maciej"]
[Black "Barwinska, Ewa"]
[WhiteFideId "1113585"]
[BlackFideId "21833761"]
[WhiteElo "2409"]
[BlackElo "2283"]
[Result "1-0"]
[Round "6"]
[TimeControl "180+1"]
[Date "2023.08.01"]
[WhiteClock "0:01:48"]
[BlackClock "0:00:08"]
[Board "185"]

1. c4 {[%clk 0:03:00]}  c5 {[%clk 0:02:56]} 2. Nf3 {[%clk 0:02:59]}  Nc6 {[%clk 0:02:55]} 3. Nc3 {[%clk 0:02:58]}  Nf6 {[%clk 0:02:52]} 4. g3 {[%clk 0:02:58]}  e5 {[%clk 0:02:43]} 5. Bg2 {[%clk 0:02:56]}  d5 {[%clk 0:02:43]} 6. cxd5 {[%clk 0:02:55]}  Nxd5 {[%clk 0:02:43]} 7. Nxe5 {[%clk 0:02:50]}  Nxc3 {[%clk 0:02:28]} 8. Nxc6 {[%clk 0:02:50]}  Nxd1 {[%clk 0:02:24]} 9. Nxd8 {[%clk 0:02:49]}  Nxf2 {[%clk 0:02:15]} 10. Nxf7 {[%clk 0:02:45]}  Nd3+ {[%clk 0:01:59]} 11. exd3 {[%clk 0:02:44]}  Kxf7 {[%clk 0:01:59]} 12. Rf1+ {[%clk 0:02:39]}  Ke8 {[%clk 0:01:52]} 13. d4 {[%clk 0:02:37]}  cxd4 {[%clk 0:01:51]} 14. Ke2 {[%clk 0:02:38]}  Bc5 {[%clk 0:01:44]} 15. Kd3 {[%clk 0:02:36]}  b6 {[%clk 0:01:34]} 16. Bd5 {[%clk 0:02:23]}  Ba6+ {[%clk 0:01:31]} 17. Bc4 {[%clk 0:02:23]}  Bb7 {[%clk 0:01:19]} 18. b3 {[%clk 0:02:20]}  Rf8 {[%clk 0:00:54]} 19. Bb2 {[%clk 0:02:20]}  Rd8 {[%clk 0:00:38]} 20. Rae1+ {[%clk 0:02:08]}  Kd7 {[%clk 0:00:39]} 21. Rxf8 {[%clk 0:02:04]}  Rxf8 {[%clk 0:00:39]} 22. Bxd4 {[%clk 0:02:05]}  Bxd4 {[%clk 0:00:33]} 23. Kxd4 {[%clk 0:02:05]}  Rf2 {[%clk 0:00:33]} 24. Re2 {[%clk 0:02:05]}  Rf6 {[%clk 0:00:28]} 25. Ke3 {[%clk 0:01:59]}  Rf3+ {[%clk 0:00:24]} 26. Kd4 {[%clk 0:01:58]}  Rf6 {[%clk 0:00:24]} 27. d3 {[%clk 0:01:58]}  a6 {[%clk 0:00:20]} 28. a4 {[%clk 0:01:58]}  Rd6+ {[%clk 0:00:19]} 29. Ke3 {[%clk 0:01:56]}  Rf6 {[%clk 0:00:13]} 30. Rf2 {[%clk 0:01:56]}  Rxf2 {[%clk 0:00:09]} 31. Kxf2 {[%clk 0:01:57]}  Kc6 {[%clk 0:00:09]} 32. d4 {[%clk 0:01:56]}  b5 {[%clk 0:00:08]} 33. axb5+ {[%clk 0:01:56]}  axb5 {[%clk 0:00:09]} 34. Be2 {[%clk 0:01:53]}  Kd5 {[%clk 0:00:09]} 35. Bf3+ {[%clk 0:01:53]}  Kxd4 {[%clk 0:00:10]} 36. Bxb7 {[%clk 0:01:53]}  Kc3 {[%clk 0:00:09]} 37. Bd5 {[%clk 0:01:53]}  Kd4 {[%clk 0:00:10]} 38. Bg8 {[%clk 0:01:53]}  h6 {[%clk 0:00:10]} 39. Kf3 {[%clk 0:01:53]}  b4 {[%clk 0:00:10]} 40. Kf4 {[%clk 0:01:52]}  g5+ {[%clk 0:00:09]} 41. Kf5 {[%clk 0:01:51]}  Ke3 {[%clk 0:00:10]} 42. Kg6 {[%clk 0:01:48]}  Kf2 {[%clk 0:00:10]} 43. Kxh6 {[%clk 0:01:48]}  Kg2 {[%clk 0:00:11]} 44. Kxg5 {[%clk 0:01:48]}  Kxh2 {[%clk 0:00:11]} 45. g4 {[%clk 0:01:49]}  Kg3 {[%clk 0:00:08]} 46. Kf5 {[%clk 0:01:48]} 1-0


[Site "https://www.chess.com"]

[Event "Titled Tuesday Blitz August 1 Early 2023"]
[White "Amanov, Zhanibek"]
[Black "campochess"]
[WhiteFideId "13700189"]
[WhiteElo "2378"]
[BlackElo "2221"]
[Result "1-0"]
[Round "6"]
[TimeControl "180+1"]
[Date "2023.08.01"]
[WhiteClock "0:00:22"]
[BlackClock "0:01:02"]
[Board "188"]

1. e4 {[%clk 0:02:57]}  c5 {[%clk 0:02:59]} 2. Nf3 {[%clk 0:02:56]}  Nc6 {[%clk 0:03:00]} 3. Bb5 {[%clk 0:02:51]}  e5 {[%clk 0:02:55]} 4. Bxc6 {[%clk 0:02:44]}  dxc6 {[%clk 0:02:55]} 5. Nxe5 {[%clk 0:02:43]}  Qg5 {[%clk 0:02:53]} 6. d4 {[%clk 0:02:28]}  Qxg2 {[%clk 0:02:52]} 7. Qf3 {[%clk 0:02:28]}  Qxf3 {[%clk 0:02:51]} 8. Nxf3 {[%clk 0:02:28]}  cxd4 {[%clk 0:02:50]} 9. Nxd4 {[%clk 0:02:28]}  Nf6 {[%clk 0:02:50]} 10. Nc3 {[%clk 0:02:26]}  Bb4 {[%clk 0:02:50]} 11. f3 {[%clk 0:02:15]}  h6 {[%clk 0:02:48]} 12. Bd2 {[%clk 0:02:09]}  Bd7 {[%clk 0:02:46]} 13. e5 {[%clk 0:02:03]}  Bxc3 {[%clk 0:02:44]} 14. Bxc3 {[%clk 0:01:55]}  Nd5 {[%clk 0:02:44]} 15. Bd2 {[%clk 0:01:52]}  O-O-O {[%clk 0:02:42]} 16. Kf2 {[%clk 0:01:34]}  Rde8 {[%clk 0:02:40]} 17. Rae1 {[%clk 0:01:30]}  Nc7 {[%clk 0:02:36]} 18. Rhg1 {[%clk 0:01:26]}  g5 {[%clk 0:02:35]} 19. f4 {[%clk 0:01:13]}  gxf4 {[%clk 0:02:32]} 20. Bxf4 {[%clk 0:01:12]}  Ne6 {[%clk 0:02:30]} 21. Be3 {[%clk 0:01:02]}  Rhg8 {[%clk 0:02:27]} 22. Nf5 {[%clk 0:00:59]}  Kb8 {[%clk 0:02:15]} 23. Nxh6 {[%clk 0:00:53]}  Rxg1 {[%clk 0:02:13]} 24. Rxg1 {[%clk 0:00:52]}  Nd8 {[%clk 0:02:08]} 25. Bf4 {[%clk 0:00:44]}  Be6 {[%clk 0:02:08]} 26. b3 {[%clk 0:00:38]}  b5 {[%clk 0:02:05]} 27. Ng4 {[%clk 0:00:37]}  Nb7 {[%clk 0:02:04]} 28. Nf6 {[%clk 0:00:37]}  Rd8 {[%clk 0:02:03]} 29. Rg8 {[%clk 0:00:27]}  Kc7 {[%clk 0:02:01]} 30. h4 {[%clk 0:00:24]}  Rxg8 {[%clk 0:01:59]} 31. Nxg8 {[%clk 0:00:23]}  Bg4 {[%clk 0:01:57]} 32. e6+ {[%clk 0:00:23]}  Kd8 {[%clk 0:01:02]} 33. exf7 {[%clk 0:00:22]} 1-0


[Site "https://www.chess.com"]

[Event "Titled Tuesday Blitz August 1 Early 2023"]
[White "le-castor-faineant"]
[Black "Rodriguez Santiago, Jaime"]
[BlackFideId "3100898"]
[WhiteElo "2194"]
[BlackElo "2362"]
[Result "0-1"]
[Round "6"]
[TimeControl "180+1"]
[Date "2023.08.01"]
[WhiteClock "0:01:33"]
[BlackClock "0:01:36"]
[Board "190"]

1. e4 {[%clk 0:02:57]}  c6 {[%clk 0:02:58]} 2. d4 {[%clk 0:02:51]}  d5 {[%clk 0:02:58]} 3. Nc3 {[%clk 0:02:52]}  dxe4 {[%clk 0:02:57]} 4. Nxe4 {[%clk 0:02:53]}  Nf6 {[%clk 0:02:55]} 5. Nxf6+ {[%clk 0:02:53]}  exf6 {[%clk 0:02:50]} 6. c3 {[%clk 0:02:53]}  Bd6 {[%clk 0:02:49]} 7. Bd3 {[%clk 0:02:53]}  O-O {[%clk 0:02:45]} 8. Ne2 {[%clk 0:02:52]}  Re8 {[%clk 0:02:44]} 9. Qc2 {[%clk 0:02:52]}  h5 {[%clk 0:02:40]} 10. Bd2 {[%clk 0:02:52]}  Nd7 {[%clk 0:02:37]} 11. O-O-O {[%clk 0:02:48]}  Nf8 {[%clk 0:02:37]} 12. h4 {[%clk 0:02:33]}  Be6 {[%clk 0:02:34]} 13. Kb1 {[%clk 0:02:32]}  b5 {[%clk 0:02:28]} 14. Nf4 {[%clk 0:02:11]}  Bxf4 {[%clk 0:02:23]} 15. Bxf4 {[%clk 0:02:11]}  Qd5 {[%clk 0:02:23]} 16. b3 {[%clk 0:02:09]}  a5 {[%clk 0:02:12]} 17. Be4 {[%clk 0:02:08]}  Qd7 {[%clk 0:02:09]} 18. Bf3 {[%clk 0:01:58]}  Bf5 {[%clk 0:02:03]} 19. Rd3 {[%clk 0:01:58]}  a4 {[%clk 0:01:58]} 20. Kb2 {[%clk 0:01:55]}  axb3 {[%clk 0:01:48]} 21. axb3 {[%clk 0:01:56]}  Qa7 {[%clk 0:01:38]} 22. Rb1 {[%clk 0:01:33]}  Qa3# {[%clk 0:01:36]} 0-1


[Site "https://www.chess.com"]

[Event "Titled Tuesday Blitz August 1 Early 2023"]
[White "Skiadopoulos, Nikolaos"]
[Black "Pavlidou, Ekaterini"]
[WhiteFideId "4200772"]
[BlackFideId "4213262"]
[WhiteElo "1848"]
[BlackElo "2326"]
[Result "0-1"]
[Round "6"]
[TimeControl "180+1"]
[Date "2023.08.01"]
[WhiteClock "0:00:00"]
[BlackClock "0:01:23"]
[Board "194"]

1. e4 {[%clk 0:02:58]}  c5 {[%clk 0:02:59]} 2. b4 {[%clk 0:02:57]}  b6 {[%clk 0:02:57]} 3. bxc5 {[%clk 0:02:56]}  bxc5 {[%clk 0:02:58]} 4. Nc3 {[%clk 0:02:55]}  Nc6 {[%clk 0:02:58]} 5. Nf3 {[%clk 0:02:53]}  g6 {[%clk 0:02:58]} 6. Bb2 {[%clk 0:02:49]}  Bg7 {[%clk 0:02:58]} 7. Na4 {[%clk 0:02:49]}  Bxb2 {[%clk 0:02:56]} 8. Nxb2 {[%clk 0:02:48]}  d6 {[%clk 0:02:55]} 9. Bb5 {[%clk 0:02:36]}  Bd7 {[%clk 0:02:56]} 10. Bxc6 {[%clk 0:02:35]}  Bxc6 {[%clk 0:02:55]} 11. d3 {[%clk 0:02:32]}  Qa5+ {[%clk 0:02:50]} 12. Qd2 {[%clk 0:02:29]}  Qxd2+ {[%clk 0:02:49]} 13. Nxd2 {[%clk 0:02:27]}  Nf6 {[%clk 0:02:49]} 14. O-O {[%clk 0:02:23]}  Nd7 {[%clk 0:02:45]} 15. f4 {[%clk 0:02:06]}  a5 {[%clk 0:02:40]} 16. Nbc4 {[%clk 0:02:02]}  a4 {[%clk 0:02:38]} 17. Rab1 {[%clk 0:01:55]}  Kd8 {[%clk 0:02:38]} 18. a3 {[%clk 0:01:49]}  Kc7 {[%clk 0:02:38]} 19. Rb2 {[%clk 0:01:49]}  Rhb8 {[%clk 0:02:35]} 20. Rfb1 {[%clk 0:01:49]}  Rxb2 {[%clk 0:02:32]} 21. Rxb2 {[%clk 0:01:48]}  Rb8 {[%clk 0:02:33]} 22. Rxb8 {[%clk 0:01:38]}  Nxb8 {[%clk 0:02:33]} 23. Na5 {[%clk 0:01:28]}  e6 {[%clk 0:02:27]} 24. g4 {[%clk 0:01:20]}  Bb5 {[%clk 0:02:23]} 25. Kf2 {[%clk 0:01:14]}  d5 {[%clk 0:02:23]} 26. exd5 {[%clk 0:01:08]}  exd5 {[%clk 0:02:23]} 27. c4 {[%clk 0:01:08]}  Kb6 {[%clk 0:02:19]} 28. cxb5 {[%clk 0:00:50]}  Kxa5 {[%clk 0:02:19]} 29. Nf3 {[%clk 0:00:48]}  f6 {[%clk 0:01:57]} 30. g5 {[%clk 0:00:45]}  Nd7 {[%clk 0:01:55]} 31. h4 {[%clk 0:00:40]}  Kxb5 {[%clk 0:01:54]} 32. Ke3 {[%clk 0:00:27]}  Kc6 {[%clk 0:01:42]} 33. f5 {[%clk 0:00:19]}  gxf5 {[%clk 0:01:37]} 34. Kf4 {[%clk 0:00:19]}  fxg5+ {[%clk 0:01:28]} 35. hxg5 {[%clk 0:00:19]}  c4 {[%clk 0:01:23]} 36. dxc4 {[%clk 0:00:17]}  dxc4 {[%clk 0:01:23]} 37. Kxf5 {[%clk 0:00:00]}  Kd5 {[%clk 0:01:23]} 0-1


[Site "https://www.chess.com"]

[Event "Titled Tuesday Blitz August 1 Early 2023"]
[White "Clawitter, Craig"]
[Black "KorolDimitriy75"]
[WhiteFideId "2023105"]
[WhiteElo "2250"]
[BlackElo "2401"]
[Result "0-1"]
[Round "6"]
[TimeControl "180+1"]
[Date "2023.08.01"]
[WhiteClock "0:00:00"]
[BlackClock "0:00:38"]
[Board "201"]

1. e4 {[%clk 0:03:00]}  c5 {[%clk 0:03:00]} 2. Nf3 {[%clk 0:03:00]}  d6 {[%clk 0:03:00]} 3. d4 {[%clk 0:03:01]}  cxd4 {[%clk 0:03:01]} 4. Nxd4 {[%clk 0:03:02]}  Nf6 {[%clk 0:03:02]} 5. Nc3 {[%clk 0:03:02]}  g6 {[%clk 0:03:02]} 6. Be3 {[%clk 0:03:02]}  Bg7 {[%clk 0:03:03]} 7. f3 {[%clk 0:03:03]}  O-O {[%clk 0:03:03]} 8. Qd2 {[%clk 0:03:03]}  Nc6 {[%clk 0:03:04]} 9. Bc4 {[%clk 0:02:56]}  Bd7 {[%clk 0:03:03]} 10. O-O-O {[%clk 0:02:56]}  Qa5 {[%clk 0:03:03]} 11. Bb3 {[%clk 0:02:50]}  Rfc8 {[%clk 0:03:03]} 12. Kb1 {[%clk 0:02:48]}  Ne5 {[%clk 0:03:03]} 13. h4 {[%clk 0:02:41]}  b5 {[%clk 0:03:02]} 14. Ncxb5 {[%clk 0:02:38]}  Qxd2 {[%clk 0:03:01]} 15. Bxd2 {[%clk 0:02:38]}  Rab8 {[%clk 0:02:58]} 16. a4 {[%clk 0:02:13]}  a6 {[%clk 0:02:57]} 17. Na3 {[%clk 0:02:10]}  Be8 {[%clk 0:02:46]} 18. Ka2 {[%clk 0:01:15]}  Nfd7 {[%clk 0:02:44]} 19. Bc3 {[%clk 0:00:58]}  Nc5 {[%clk 0:01:56]} 20. a5 {[%clk 0:00:40]}  Ba4 {[%clk 0:01:08]} 21. h5 {[%clk 0:00:26]}  Nc6 {[%clk 0:00:55]} 22. Nxc6 {[%clk 0:00:15]}  Rxc6 {[%clk 0:00:55]} 23. Bxg7 {[%clk 0:00:14]}  Kxg7 {[%clk 0:00:56]} 24. Bd5 {[%clk 0:00:06]}  Rc7 {[%clk 0:00:52]} 25. hxg6 {[%clk 0:00:06]}  hxg6 {[%clk 0:00:52]} 26. Rh4 {[%clk 0:00:03]}  e6 {[%clk 0:00:44]} 27. Bc4 {[%clk 0:00:00]}  Rb4 {[%clk 0:00:38]} 0-1


[Site "https://www.chess.com"]

[Event "Titled Tuesday Blitz August 1 Early 2023"]
[White "hsd2016"]
[Black "Elissalt Cardenas, Hector"]
[BlackFideId "3500632"]
[WhiteElo "2224"]
[BlackElo "2338"]
[Result "0-1"]
[Round "6"]
[TimeControl "180+1"]
[Date "2023.08.01"]
[WhiteClock "0:00:07"]
[BlackClock "0:00:39"]
[Board "204"]

1. e4 {[%clk 0:03:00]}  d6 {[%clk 0:02:59]} 2. d4 {[%clk 0:03:01]}  Nf6 {[%clk 0:02:58]} 3. Bd3 {[%clk 0:03:01]}  e5 {[%clk 0:02:58]} 4. dxe5 {[%clk 0:02:59]}  dxe5 {[%clk 0:02:57]} 5. Nf3 {[%clk 0:02:53]}  Bd6 {[%clk 0:02:55]} 6. Nbd2 {[%clk 0:02:49]}  h6 {[%clk 0:02:55]} 7. Nc4 {[%clk 0:02:45]}  Nc6 {[%clk 0:02:54]} 8. h3 {[%clk 0:02:41]}  Qe7 {[%clk 0:02:50]} 9. Be3 {[%clk 0:02:37]}  a6 {[%clk 0:02:49]} 10. O-O {[%clk 0:02:26]}  Be6 {[%clk 0:02:43]} 11. Nxd6+ {[%clk 0:02:21]}  cxd6 {[%clk 0:02:42]} 12. a3 {[%clk 0:02:19]}  Rd8 {[%clk 0:02:36]} 13. c4 {[%clk 0:02:16]}  g5 {[%clk 0:02:32]} 14. Nh2 {[%clk 0:02:04]}  Rg8 {[%clk 0:02:27]} 15. Ng4 {[%clk 0:01:58]}  Nxg4 {[%clk 0:02:10]} 16. hxg4 {[%clk 0:01:59]}  f6 {[%clk 0:02:03]} 17. b4 {[%clk 0:01:43]}  Qd7 {[%clk 0:01:55]} 18. f3 {[%clk 0:01:36]}  Qf7 {[%clk 0:01:51]} 19. Qe2 {[%clk 0:01:33]}  h5 {[%clk 0:01:48]} 20. gxh5 {[%clk 0:01:26]}  Qxh5 {[%clk 0:01:47]} 21. g4 {[%clk 0:01:21]}  Qh3 {[%clk 0:01:42]} 22. Qg2 {[%clk 0:01:17]}  Qh4 {[%clk 0:01:34]} 23. Qh2 {[%clk 0:01:04]}  Rh8 {[%clk 0:01:32]} 24. Qxh4 {[%clk 0:01:03]}  Rxh4 {[%clk 0:01:31]} 25. Kg2 {[%clk 0:01:03]}  Ke7 {[%clk 0:01:32]} 26. Rh1 {[%clk 0:01:02]}  Rdh8 {[%clk 0:01:32]} 27. Rxh4 {[%clk 0:01:02]}  Rxh4 {[%clk 0:01:31]} 28. Rd1 {[%clk 0:00:53]}  Nb8 {[%clk 0:01:28]} 29. c5 {[%clk 0:00:48]}  d5 {[%clk 0:01:22]} 30. exd5 {[%clk 0:00:48]}  Bxd5 {[%clk 0:01:20]} 31. Bf5 {[%clk 0:00:31]}  Bc6 {[%clk 0:01:12]} 32. Rd6 {[%clk 0:00:12]}  Nd7 {[%clk 0:01:09]} 33. Re6+ {[%clk 0:00:10]}  Kf7 {[%clk 0:01:09]} 34. Rd6 {[%clk 0:00:11]}  Nf8 {[%clk 0:00:59]} 35. Bd2 {[%clk 0:00:02]}  Ng6 {[%clk 0:00:59]} 36. Bxg6+ {[%clk 0:00:01]}  Kxg6 {[%clk 0:00:57]} 37. Bc3 {[%clk 0:00:02]}  Rxg4+ {[%clk 0:00:53]} 38. Kf2 {[%clk 0:00:02]}  Rf4 {[%clk 0:00:54]} 39. Bxe5 {[%clk 0:00:02]}  Rxf3+ {[%clk 0:00:51]} 40. Ke2 {[%clk 0:00:02]}  Rf5 {[%clk 0:00:50]} 41. Bc3 {[%clk 0:00:01]}  g4 {[%clk 0:00:50]} 42. Rd8 {[%clk 0:00:01]}  Kf7 {[%clk 0:00:47]} 43. Ke3 {[%clk 0:00:01]}  g3 {[%clk 0:00:47]} 44. Kd2 {[%clk 0:00:01]}  g2 {[%clk 0:00:47]} 45. Bd4 {[%clk 0:00:01]}  Rf1 {[%clk 0:00:44]} 46. Rd6 {[%clk 0:00:02]}  g1=Q {[%clk 0:00:43]} 47. Bxg1 {[%clk 0:00:03]}  Rxg1 {[%clk 0:00:44]} 48. Kc3 {[%clk 0:00:03]}  Rg3+ {[%clk 0:00:42]} 49. Kb2 {[%clk 0:00:04]}  f5 {[%clk 0:00:40]} 50. Rd4 {[%clk 0:00:04]}  Ke6 {[%clk 0:00:39]} 51. Rf4 {[%clk 0:00:04]}  Ke5 {[%clk 0:00:39]} 52. Rf2 {[%clk 0:00:05]}  f4 {[%clk 0:00:39]} 53. Re2+ {[%clk 0:00:06]}  Re3 {[%clk 0:00:39]} 54. Rf2 {[%clk 0:00:07]} 0-1


[Site "https://www.chess.com"]

[Event "Titled Tuesday Blitz August 1 Early 2023"]
[White "AndresDelgado77"]
[Black "Tagliata"]
[WhiteElo "2328"]
[BlackElo "2209"]
[Result "1-0"]
[Round "6"]
[TimeControl "180+1"]
[Date "2023.08.01"]
[WhiteClock "0:00:48"]
[BlackClock "0:01:49"]
[Board "206"]

1. e4 {[%clk 0:02:59]}  c5 {[%clk 0:03:00]} 2. Nf3 {[%clk 0:02:59]}  Nc6 {[%clk 0:03:01]} 3. b4 {[%clk 0:02:59]}  cxb4 {[%clk 0:02:58]} 4. d4 {[%clk 0:02:58]}  d5 {[%clk 0:02:57]} 5. exd5 {[%clk 0:02:55]}  Qxd5 {[%clk 0:02:58]} 6. c4 {[%clk 0:02:56]}  bxc3 {[%clk 0:02:58]} 7. Nxc3 {[%clk 0:02:55]}  Qa5 {[%clk 0:02:57]} 8. Bd2 {[%clk 0:02:55]}  Qd8 {[%clk 0:02:55]} 9. d5 {[%clk 0:02:55]}  Nb8 {[%clk 0:02:53]} 10. Ne5 {[%clk 0:02:05]}  Nd7 {[%clk 0:02:43]} 11. Qa4 {[%clk 0:01:51]}  Nf6 {[%clk 0:02:36]} 12. Rc1 {[%clk 0:01:50]}  g6 {[%clk 0:02:30]} 13. Nb5 {[%clk 0:01:26]}  Nxd5 {[%clk 0:02:26]} 14. Bc4 {[%clk 0:01:20]}  e6 {[%clk 0:02:13]} 15. Bxd5 {[%clk 0:01:16]}  exd5 {[%clk 0:02:07]} 16. Nc7+ {[%clk 0:01:11]}  Ke7 {[%clk 0:02:07]} 17. Qh4+ {[%clk 0:00:54]}  f6 {[%clk 0:02:01]} 18. Bb4+ {[%clk 0:00:51]}  Nc5 {[%clk 0:01:49]} 19. Bxc5+ {[%clk 0:00:48]} 1-0


[Site "https://www.chess.com"]

[Event "Titled Tuesday Blitz August 1 Early 2023"]
[White "Hrescak, Ivana"]
[Black "Viskelis, Darius"]
[WhiteFideId "14613441"]
[BlackFideId "12800830"]
[WhiteElo "2207"]
[BlackElo "2323"]
[Result "1-0"]
[Round "6"]
[TimeControl "180+1"]
[Date "2023.08.01"]
[WhiteClock "0:00:21"]
[BlackClock "0:00:18"]
[Board "207"]

1. e4 {[%clk 0:03:00]}  Nc6 {[%clk 0:02:55]} 2. Nf3 {[%clk 0:03:00]}  d6 {[%clk 0:02:54]} 3. d4 {[%clk 0:02:59]}  Bg4 {[%clk 0:02:53]} 4. Be3 {[%clk 0:02:58]}  Nf6 {[%clk 0:02:51]} 5. Nbd2 {[%clk 0:02:56]}  e6 {[%clk 0:02:50]} 6. h3 {[%clk 0:02:56]}  Bh5 {[%clk 0:02:49]} 7. c3 {[%clk 0:02:47]}  d5 {[%clk 0:02:46]} 8. e5 {[%clk 0:02:46]}  Ne4 {[%clk 0:02:46]} 9. Be2 {[%clk 0:02:36]}  Be7 {[%clk 0:02:32]} 10. Nxe4 {[%clk 0:02:34]}  dxe4 {[%clk 0:02:32]} 11. Nd2 {[%clk 0:02:34]}  Bg6 {[%clk 0:02:31]} 12. O-O {[%clk 0:02:31]}  O-O {[%clk 0:02:30]} 13. Bh5 {[%clk 0:02:26]}  Bf5 {[%clk 0:01:55]} 14. g4 {[%clk 0:02:26]}  Bg6 {[%clk 0:01:43]} 15. Bxg6 {[%clk 0:02:26]}  fxg6 {[%clk 0:01:39]} 16. Nxe4 {[%clk 0:02:26]}  Qd5 {[%clk 0:01:39]} 17. Qc2 {[%clk 0:02:08]}  Rf3 {[%clk 0:01:35]} 18. Kg2 {[%clk 0:02:07]}  Raf8 {[%clk 0:01:34]} 19. Rad1 {[%clk 0:01:57]}  h5 {[%clk 0:01:33]} 20. c4 {[%clk 0:01:42]}  Qd8 {[%clk 0:01:15]} 21. Nd2 {[%clk 0:01:28]}  R3f7 {[%clk 0:01:01]} 22. Qxg6 {[%clk 0:01:09]}  Nxd4 {[%clk 0:00:42]} 23. Nb3 {[%clk 0:01:06]}  c5 {[%clk 0:00:42]} 24. Nxd4 {[%clk 0:01:05]}  cxd4 {[%clk 0:00:41]} 25. Rxd4 {[%clk 0:01:04]}  Qc7 {[%clk 0:00:40]} 26. Qxe6 {[%clk 0:00:56]}  Kh8 {[%clk 0:00:28]} 27. Qd5 {[%clk 0:00:34]}  Bc5 {[%clk 0:00:20]} 28. Re4 {[%clk 0:00:26]}  Bxe3 {[%clk 0:00:19]} 29. Rxe3 {[%clk 0:00:25]}  hxg4 {[%clk 0:00:18]} 30. hxg4 {[%clk 0:00:22]}  Rf4 {[%clk 0:00:18]} 31. Rh1# {[%clk 0:00:21]} 1-0


[Site "https://www.chess.com"]